[Event "NOR-ch Women 2019"]
[Site "Bekkestua"]
[Date "2019.03.15"]
[Round "1.2"]
[White "Johnsen, Sylvia"]
[Black "Szemes, Eva Weston"]
[Result "1-0"]
[ECO "A25"]
[WhiteElo "1982"]
[BlackElo "1335"]
[Annotator "NA RC"]
[PlyCount "55"]
[EventDate "2019.03.15"]
[EventType "swiss"]
[EventCountry "NOR"]
[SourceTitle "playchess.com"]
[Source "ChessBase"]
[SourceQuality "1"]
[TimeControl "5400+30"]

{[%evp 10,55,54,58,32767,152,152,164,179,173,164,172,280,172,174,32767,32767,167,248,220,384,194,260,263,256,200,32767,150,188,195,195,178,495,502,556,504,536,555,32767,570,760,647,782,813,888,1007,1169,1333]} 1. c4 {[%emt 0:00:31]} e5 {[%emt 0:00:39]} 2. Nc3 {[%emt 0:00:39]} Nf6 {[%emt 0:00:40]} 3. g3 {[%emt 0:00:42]} Nc6 {[%emt 0:00:55]} 4. Bg2 {[%emt 0:00:38]} b6 {[%emt 0:01:00]} 5. d3 {[%emt 0:01:49] A25: English Opening vs King's Indian with ...Nc6 but without early d3} (5. Nf3 Rb8 6. O-O Be7 7. d4 exd4 8. Nb5 Bb7 9. Bf4 d6 10. Nfxd4 Nxd4 11. Bxb7 Rxb7 12. Nxd4 O-O {1-0 (45) Cimins,A (2137)-Portych,V (2178) ICCF email 2011}) 5... Bb7 {[%emt 0:00:49]} 6. Nf3 {[%emt 0:00:41]} g6 {[%emt 0:01:46] [#]} 7. Nxe5 $1 {[%emt 0:02:11] Pin} Bg7 {[%emt 0:01:00]} 8. Nxc6 $146 {[%emt 0:01:48]} ({Predecessor:} 8. O-O O-O 9. d4 Na5 10. b4 Bxg2 11. Kxg2 Nb7 12. Bg5 d6 13. Nd5 Re8 14. Bxf6 Bxf6 15. Nc6 {1-0 (15) Lewis,M (1645)-Whiting,D (821) IECG email 1998}) 8... Bxc6 {[%emt 0:00:37]} 9. e4 {[%emt 0:00:45]} O-O {[%emt 0:01:55]} 10. O-O {[%emt 0:00:37]} d6 {[%emt 0:02:41]} (10... Ne8 $142 11. d4 Rc8) 11. Bg5 {[%emt 0:01:25]} Qd7 {[%emt 0:03:27]} 12. Qd2 {[%emt 0:03:48]} Rfe8 {[%emt 0:03:51]} 13. Rae1 {[%emt 0:04:51]} Re7 {[%emt 0:04:17]} (13... a6 {is a better defense.} 14. d4 b5) 14. b4 {[%emt 0:09:02]} a6 $2 {[%emt 0:03:56] [#]} (14... Ree8 15. f4 h6) 15. d4 {[%emt 0:10:00]} (15. b5 $142 $1 {[%mdl 512]} axb5 16. cxb5) 15... Rae8 {[%emt 0:01:39]} (15... Ree8 {is a better defense.} 16. f4 Ng4) 16. d5 {[%emt 0:00:43]} Bb7 {[%emt 0:00:41]} 17. Qd3 {[%emt 0:16:48]} h6 {[%emt 0:02:27]} 18. Bd2 {[%emt 0:01:33]} Bc8 {[%emt 0:02:54]} (18... Ng4 $16 {was worth a try.} 19. f4 c6) 19. f4 {[%emt 0:02:32]} Qd8 {[%emt 0:02:06]} 20. h3 {[%emt 0:05:13]} c5 $2 {[%emt 0:02:37]} (20... Bb7 {is more resistant.} 21. Be3 a5) 21. dxc6 {[%emt 0:00:54]} Qc7 {[%emt 0:03:27]} 22. b5 {[%emt 0:02:58]} axb5 {[%emt 0:00:47]} 23. cxb5 {[%emt 0:00:35]} Be6 {[%emt 0:01:50]} 24. Be3 {[%emt 0:05:21]} Rb8 {[%emt 0:01:47]} 25. Rd1 {[%emt 0:00:59]} Ne8 {[%emt 0:01:05]} 26. f5 {[%emt 0:05:05]} gxf5 {[%emt 0:02:02]} 27. exf5 {[%emt 0:00:45]} Bc8 {[%emt 0:01:02]} 28. Nd5 $18 {[%emt 0:00:38] Double Attack} 1-0

[Event "NOR-ch Women 2019"]
[Site "Bekkestua"]
[Date "2019.03.15"]
[Round "1.3"]
[White "Lotz, Corinna"]
[Black "Ayzenberg, Alena"]
[Result "0-1"]
[ECO "C01"]
[WhiteElo "1334"]
[BlackElo "1908"]
[Annotator "NA RC"]
[PlyCount "74"]
[EventDate "2019.03.15"]
[EventType "swiss"]
[EventCountry "NOR"]
[SourceTitle "playchess.com"]
[Source "ChessBase"]
[SourceQuality "1"]
[TimeControl "5400+30"]

{[%evp 8,74,18,-25,43,21,26,23,29,24,16,-26,-29,-19,-6,-45,-43,-62,-57,-141,-115,-131,-109,-118,-108,-169,-121,-136,-115,32767,-114,-153,-154,-168,-154,-190,-247,-256,-249,-255,-259,-291,-251,-250,-251,-243,-248,-264,-281,-288,-215,-326,-344,-445,-489,-474,-497,-510,-281,-292,-309,-297,-315,-339,-323,-417,-318,-1378,-1629]} 1. e4 {[%emt 0:00:32]} e6 {[%emt 0:00:40]} 2. Nc3 {[%emt 0:01:21]} d5 {[%emt 0:00:37]} 3. exd5 {[%emt 0:03:41]} exd5 {[%emt 0:00:38]} 4. d4 {[%emt 0:03:43]} Bb4 {[%emt 0:01:05]} 5. Qe2+ {[%emt 0:01:43]} (5. Bd3 Nf6 6. Nge2 O-O 7. O-O c6 8. Bg5 h6 9. Bh4 Re8 10. f3 Nbd7 11. Qd2 Nf8 12. Rae1 Bd6 13. Bg3 Ng6 14. Bxd6 Qxd6 15. Bxg6 fxg6 {1-0 (39) Aronian,L (2767)-Caruana,F (2822) chess.com INT 2018}) 5... Qe7 {[%emt 0:04:54]} (5... Ne7 $15) 6. Bd2 {[%emt 0:04:18] C01: French: Exchange Variation} c6 {[%emt 0:10:24]} 7. a3 {[%emt 0:06:00]} Bd6 $146 {[%emt 0:01:17]} ({Predecessor:} 7... Bxc3 8. Bxc3 Bf5 9. O-O-O Nd7 10. Qf3 Be4 11. Qg4 f5 12. Qg3 Ngf6 {0-1 (25) Tyrrell,L-Liu,H (1479) Hong Kong 2015}) 8. Nf3 {[%emt 0:06:41]} Bg4 {[%emt 0:04:22]} 9. Qxe7+ {[%emt 0:01:04]} Nxe7 {[%emt 0:00:57]} 10. Ne5 {[%emt 0:01:00]} Be6 {[%emt 0:02:14]} 11. f4 {[%emt 0:03:30]} Nf5 {[%emt 0:02:59]} 12. Ne2 {[%emt 0:01:50]} h5 {[%emt 0:04:12]} 13. h4 {[%emt 0:03:36]} (13. Nf3 $15) 13... f6 {[%emt 0:03:39]} 14. Nd3 {[%emt 0:08:06]} Nd7 {[%emt 0:01:55]} 15. g3 {[%emt 0:06:18]} Nh6 {[%emt 0:06:37]} 16. Bh3 {[%emt 0:04:11]} Bf5 {[%emt 0:04:04]} 17. Bxf5 {[%emt 0:01:49]} Nxf5 {[%emt 0:00:37]} 18. Rg1 {[%emt 0:01:03]} O-O-O {[%emt 0:01:36]} 19. O-O-O {[%emt 0:01:35]} Rde8 {[%emt 0:02:27]} 20. Rde1 {[%emt 0:07:25]} Nb6 {[%emt 0:03:11]} 21. Bb4 {[%emt 0:11:43]} Bxb4 {[%emt 0:02:24]} 22. axb4 {[%emt 0:01:06]} Nc4 {[%emt 0:01:05]} 23. b3 {[%emt 0:03:03]} Nce3 {[%emt 0:02:54]} 24. c3 {[%emt 0:03:50]} Re7 {[%emt 0:01:40]} 25. Kd2 {[%emt 0:02:29]} Rhe8 {[%emt 0:04:19]} 26. Nec1 {[%emt 0:02:23]} Ng4 {[%emt 0:07:53]} 27. Rxe7 {[%emt 0:00:40]} Rxe7 {[%emt 0:00:44]} ({Not} 27... Nxe7 28. Re1 $17) 28. Ne2 {[%emt 0:01:02]} Nd6 {[%emt 0:07:23]} 29. Kd1 {[%emt 0:01:49]} (29. Ke1 {was called for.}) 29... Re3 {[%emt 0:03:03]} 30. Nc5 {[%emt 0:02:42]} b6 {[%emt 0:01:41]} 31. Na4 {[%emt 0:01:47]} Ne4 {[%emt 0:02:07]} 32. Nc1 {[%emt 0:01:57]} Nxc3+ {[%emt 0:02:58]} 33. Nxc3 {[%emt 0:00:37]} Rxc3 {[%emt 0:00:34]} 34. Kd2 {[%emt 0:00:40]} Re3 {[%emt 0:00:49]} 35. Rg2 {[%emt 0:00:56]} Kd7 {[%emt 0:02:14]} 36. Kc2 {[%emt 0:00:34]} Re4 {[%emt 0:01:02]} 37. Ne2 $2 {[%emt 0:00:35]} (37. Kd3) 37... Ne3+ $19 {[%emt 0:00:42] Double Attack} 0-1

[Event "NOR-ch Women 2019"]
[Site "Bekkestua"]
[Date "2019.03.15"]
[Round "1.4"]
[White "Kyrkjebo, Hanna B."]
[Black "Selvik, Elma"]
[Result "1-0"]
[ECO "B40"]
[WhiteElo "1896"]
[BlackElo "1329"]
[Annotator "NA RC"]
[PlyCount "65"]
[EventDate "2019.03.15"]
[EventType "swiss"]
[EventCountry "NOR"]
[SourceTitle "playchess.com"]
[Source "ChessBase"]
[SourceQuality "1"]
[TimeControl "5400+30"]

{[%evp 8,65,20,32767,35,33,34,14,8,15,12,15,120,124,129,32767,124,114,133,32767,53,58,209,170,194,123,365,358,414,291,554,525,641,720,641,610,647,700,931,1039,1124,389,480,428,785,32767,854,980,933,1009,1831,1894,2053,2238,3042,2146,2988,2034,1952,2753]} 1. e4 {[%emt 0:00:33]} c5 {[%emt 0:00:36]} 2. Nf3 {[%emt 0:00:36]} e6 {[%emt 0:00:40]} 3. d3 {[%emt 0:01:26]} Qc7 {[%emt 0:01:54]} 4. g3 {[%emt 0:01:19]} Nc6 {[%emt 0:01:16]} 5. Bg2 {[%emt 0:00:42] B40: Sicilian: 2...e6, Unusual lines} Nf6 {[%emt 0:01:15]} 6. O-O {[%emt 0:00:56]} Be7 {[%emt 0:01:00]} 7. Qe2 {[%emt 0:01:51]} O-O {[%emt 0:01:48]} (7... d5 8. Bf4 Qd8 9. e5 Nd7 10. h4 b5 11. c3 Bb7 12. Na3 {1-0 (34) Jones,G (2682)-Geller,J (2518) St Petersburg 2018}) 8. Re1 {[%emt 0:01:49]} b6 $146 {[%emt 0:01:58]} ({Predecessor:} 8... d6 9. c3 e5 10. Na3 a6 11. Nc4 Be6 {1-0 (37) Neelotpal,D (2468)-Tung,K (2125) San Sebastian 2005}) 9. e5 {[%emt 0:02:58]} Nd5 {[%emt 0:03:28] [#]} (9... Ne8 $1 $11 {keeps the balance.}) 10. c4 $1 {[%emt 0:03:16]} Ndb4 {[%emt 0:01:16]} 11. a3 {[%emt 0:01:19]} Na6 {[%emt 0:01:32]} 12. Nc3 {[%emt 0:02:23]} Bb7 {[%emt 0:02:37]} 13. Nb5 {[%emt 0:02:41]} Qd8 {[%emt 0:04:44]} 14. Bf4 {[%emt 0:04:00]} f6 {[%emt 0:08:44]} (14... Nc7 $14) 15. exf6 {[%emt 0:03:30]} Rxf6 {[%emt 0:05:34]} 16. Qd1 {[%emt 0:06:04]} d6 $2 {[%emt 0:11:57]} (16... Nab8 $16 {was called for.} 17. Nd2 Na5) 17. Ng5 {[%emt 0:06:09]} Qd7 {[%emt 0:06:06] [#]} 18. Nxe6 $1 {[%emt 0:10:25]} Rxe6 $2 {[%emt 0:06:41]} (18... Rf7 19. Rc1 Rb8) 19. Rxe6 {[%emt 0:02:00]} Nc7 {[%emt 0:10:38]} 20. Nxc7 {[%emt 0:08:51]} Qxc7 {[%emt 0:01:40]} 21. Bd5 {[%emt 0:01:57]} Kh8 {[%emt 0:02:08]} 22. Qe1 {[%emt 0:05:43]} h6 {[%emt 0:06:36]} 23. Qe4 {[%emt 0:04:54]} Bf8 {[%emt 0:07:10]} 24. Qg6 $2 {[%emt 0:05:16]} (24. Re1 Qd7 25. Re8) 24... Ne7 {[%emt 0:02:10]} 25. Bxd6 {[%emt 0:05:39]} Nxg6 {[%emt 0:01:21]} (25... Qxd6 $142 26. Rxd6 Nxg6) 26. Bxc7 {[%emt 0:00:41]} Bxd5 {[%emt 0:01:07]} 27. cxd5 {[%emt 0:00:51]} Kh7 {[%emt 0:01:45]} 28. d6 {[%emt 0:00:57]} Nh8 {[%emt 0:01:54]} 29. d7 {[%emt 0:01:48]} Nf7 {[%emt 0:02:31]} 30. Re8 {[%emt 0:00:51]} Be7 {[%emt 0:02:29]} 31. Rxa8 {[%emt 0:00:45]} a5 {[%emt 0:00:45]} 32. d8=Q {[%emt 0:00:48]} Bxd8 {[%emt 0:00:37]} 33. Bxd8 $18 {[%emt 0:00:38]} 1-0

[Event "NOR-ch Women 2019"]
[Site "Bekkestua"]
[Date "2019.03.15"]
[Round "1.5"]
[White "Bjerke, Vilde"]
[Black "Kyrkjebo, Marte B."]
[Result "0-1"]
[ECO "C52"]
[WhiteElo "1251"]
[BlackElo "1830"]
[Annotator "NA RC"]
[PlyCount "72"]
[EventDate "2019.03.15"]
[EventType "swiss"]
[EventCountry "NOR"]
[SourceTitle "playchess.com"]
[Source "ChessBase"]
[SourceQuality "1"]
[TimeControl "5400+30"]

{[%evp 8,72,0,32767,32767,-21,0,-7,12,-279,-314,-391,-386,-436,-434,-495,-500,-484,-315,-302,-320,-313,-319,-345,-336,-420,-428,-442,-467,-441,32767,-412,-429,-478,-483,-459,32767,32767,-514,-543,-529,-538,-645,-700,-649,-637,-633,-630,-672,-645,-656,-625,-623,-774,-852,-731,-797,-756,-758,-788,-771,-896,-962,-884,-734,-731,-774]} 1. e4 {[%emt 0:00:33]} e5 {[%emt 0:00:39]} 2. Nf3 {[%emt 0:00:39]} Nc6 {[%emt 0:00:33]} 3. Bc4 {[%emt 0:00:49]} Bc5 {[%emt 0:00:48]} 4. b4 {[%emt 0:00:38]} Bxb4 {[%emt 0:02:06]} 5. c3 {[%emt 0:00:40]} Ba5 {[%emt 0:02:21]} 6. d4 {[%emt 0:00:39]} exd4 {[%emt 0:01:37]} 7. O-O {[%emt 0:01:29]} Nge7 {[%emt 0:03:01] C52: Evans Gambit Accepted: 5 c3 Ba5} (7... d3 8. Qb3 Qf6 9. e5 Qg6 10. Rd1 d2 11. Nbxd2 Nge7 12. Nf1 b5 13. Bd3 Qe6 14. Qc2 Nxe5 15. Nxe5 Qxe5 16. Bb2 Bb7 {0-1 (58) Kislinsky,A (2513)-Simacek,P (2490) Legnica 2017}) 8. Bxf7+ $2 {[%emt 0:01:44]} (8. cxd4 $11 d5 9. exd5 Nxd5 10. Qb3) 8... Kxf7 {[%emt 0:07:34]} 9. Ng5+ {[%emt 0:00:47]} Kg8 {[%emt 0:07:12]} 10. Qb3+ {[%emt 0:00:56]} d5 {[%emt 0:01:29]} 11. Ba3 {[%emt 0:04:00]} h6 {[%emt 0:03:47]} 12. Nf3 {[%emt 0:02:11]} Bxc3 $146 {[%emt 0:06:56]} ({Predecessor:} 12... Bg4 13. Nxd4 Nxd4 14. cxd4 Bb6 15. Nc3 {0-1 (49) Lhermitte,J (1470)-Drapchin,M (1814) Gerlingen 2007}) 13. Nxc3 {[%emt 0:00:57]} dxc3 {[%emt 0:00:33]} 14. Rfd1 {[%emt 0:01:48]} Be6 {[%emt 0:08:08]} 15. Qxc3 {[%emt 0:01:04]} Qe8 {[%emt 0:06:25]} 16. Bb2 {[%emt 0:01:24]} Qf7 {[%emt 0:01:30]} 17. exd5 {[%emt 0:04:50]} Nxd5 {[%emt 0:01:14]} 18. Qd2 {[%emt 0:07:02]} Nf6 {[%emt 0:02:16]} 19. Qf4 {[%emt 0:04:12]} Kh7 {[%emt 0:05:53]} 20. Bxf6 {[%emt 0:03:22]} Qxf6 {[%emt 0:04:31]} 21. Qxc7 {[%emt 0:04:31]} Rab8 {[%emt 0:01:59]} 22. Rac1 {[%emt 0:00:49]} Rhc8 {[%emt 0:01:42]} 23. Qg3 {[%emt 0:01:17]} Rd8 {[%emt 0:01:41]} 24. Re1 {[%emt 0:03:14]} Bxa2 {[%emt 0:01:54]} 25. Rc2 {[%emt 0:02:20]} Bb3 {[%emt 0:02:15]} 26. Rce2 {[%emt 0:00:55]} Rd1 {[%emt 0:01:59]} 27. Nd2 {[%emt 0:09:02]} Rxe1+ {[%emt 0:02:12]} 28. Rxe1 {[%emt 0:00:44]} Bf7 {[%emt 0:01:36]} 29. Ne4 {[%emt 0:01:23]} Qg6 {[%emt 0:01:40]} 30. Qc7 {[%emt 0:01:40]} Re8 {[%emt 0:02:25]} 31. f3 {[%emt 0:00:41]} Re7 {[%emt 0:01:23]} 32. Qf4 {[%emt 0:02:18]} a5 {[%emt 0:01:32]} 33. Ra1 {[%emt 0:02:29]} Nd4 {[%emt 0:02:28]} 34. Ng5+ {[%emt 0:01:23]} Qxg5 {[%emt 0:01:20]} 35. Qxd4 {[%emt 0:00:43]} Qe5 {[%emt 0:01:12]} 36. Qxe5 {[%emt 0:03:32]} Rxe5 $19 {[%emt 0:00:37]} 0-1

[Event "NOR-ch Women 2019"]
[Site "Bekkestua"]
[Date "2019.03.15"]
[Round "1.6"]
[White "Mrachek, Svetlana"]
[Black "Sathren, Linda Fagerli"]
[Result "1-0"]
[ECO "D03"]
[WhiteElo "1628"]
[BlackElo "1219"]
[Annotator "NA RC"]
[PlyCount "79"]
[EventDate "2019.03.15"]
[EventType "swiss"]
[EventCountry "NOR"]
[SourceTitle "playchess.com"]
[Source "ChessBase"]
[SourceQuality "1"]
[TimeControl "5400+30"]

1. d4 {[%emt 0:00:33]} d5 {[%emt 0:00:06]} 2. Nf3 {[%emt 0:00:04]} Nf6 {[%emt 0:01:35]} 3. Bg5 {[%emt 0:01:42]} e6 {[%emt 0:01:58]} 4. e3 {[%emt 0:01:01]} Be7 {[%emt 0:01:41]} 5. Nbd2 {[%emt 0:02:08]} O-O {[%emt 0:03:02]} 6. Bd3 {[%emt 0:05:34]} c5 {[%emt 0:02:25]} 7. c3 {[%emt 0:01:57]} Nc6 {[%emt 0:02:38]} 8. Bxf6 {[%emt 0:03:46]} Bxf6 {[%emt 0:00:45]} 9. Qc2 {[%emt 0:01:45]} g6 {[%emt 0:01:58]} 10. dxc5 {[%emt 0:02:44]} a5 {[%emt 0:01:27]} 11. Rb1 {[%emt 0:01:16]} e5 {[%emt 0:01:31]} 12. Be2 {[%emt 0:01:52]} Bf5 {[%emt 0:01:18]} 13. e4 {[%emt 0:01:36]} dxe4 {[%emt 0:01:15]} 14. Nxe4 {[%emt 0:01:42]} Qd5 {[%emt 0:01:49]} 15. Nxf6+ {[%emt 0:01:12]} Kg7 {[%emt 0:01:12]} 16. Nxd5 {[%emt 0:02:08]} Bxc2 {[%emt 0:00:47]} 17. Rc1 {[%emt 0:00:57]} Be4 {[%emt 0:01:00]} 18. Nb6 {[%emt 0:02:05]} Rad8 {[%emt 0:01:44]} 19. O-O {[%emt 0:02:48]} Bd3 {[%emt 0:01:35]} 20. Bxd3 {[%emt 0:01:47]} Rxd3 {[%emt 0:00:42]} 21. a3 {[%emt 0:04:55]} Re8 {[%emt 0:01:03]} 22. Nc4 {[%emt 0:01:46]} e4 {[%emt 0:01:35]} 23. Nd6 {[%emt 0:02:07]} Re7 {[%emt 0:01:19]} 24. Ne1 {[%emt 0:06:49]} Rd2 {[%emt 0:01:21]} 25. Nc2 {[%emt 0:01:28]} f5 {[%emt 0:01:15]} 26. Rfd1 {[%emt 0:01:18]} Re2 {[%emt 0:01:59]} 27. Kf1 {[%emt 0:00:41]} Rxc2 {[%emt 0:01:03]} 28. Rxc2 {[%emt 0:00:39]} Kf6 {[%emt 0:01:47]} 29. Nxb7 {[%emt 0:04:26]} Kg5 {[%emt 0:02:19]} 30. Nd6 {[%emt 0:01:15]} Ne5 {[%emt 0:03:22]} 31. h3 {[%emt 0:02:41]} Nd3 {[%emt 0:01:04]} 32. b4 {[%emt 0:03:06]} Rc7 {[%emt 0:02:40]} 33. f3 {[%emt 0:01:42]} Kf4 {[%emt 0:01:11]} 34. fxe4 {[%emt 0:03:14]} fxe4 {[%emt 0:00:56]} 35. Nxe4 {[%emt 0:04:34]} Nxb4 {[%emt 0:01:55]} 36. cxb4 {[%emt 0:01:17]} Kxe4 {[%emt 0:00:48]} 37. Re2+ {[%emt 0:00:35]} Kf5 {[%emt 0:00:51]} 38. Rd5+ {[%emt 0:00:45]} Kf6 {[%emt 0:00:14]} 39. b5 {[%emt 0:00:06]} Rf7 {[%emt 0:00:46]} 40. Rf2+ {[%emt 0:00:27]} 1-0

[Event "NOR-ch Women 2019"]
[Site "Bekkestua"]
[Date "2019.03.15"]
[Round "1.7"]
[White "Vatneodegard, Marie"]
[Black "Larre, Linnea"]
[Result "0-1"]
[ECO "A48"]
[WhiteElo "1064"]
[BlackElo "1599"]
[Annotator "NA RC"]
[PlyCount "76"]
[EventDate "2019.03.15"]
[EventType "swiss"]
[EventCountry "NOR"]
[SourceTitle "playchess.com"]
[Source "ChessBase"]
[SourceQuality "1"]
[TimeControl "5400+30"]

1. d4 {[%emt 0:00:34]} Nf6 {[%emt 0:00:39]} 2. Nf3 {[%emt 0:00:48]} g6 {[%emt 0:00:55]} 3. Bf4 {[%emt 0:00:50]} Bg7 {[%emt 0:01:51]} 4. e3 {[%emt 0:01:06]} c5 {[%emt 0:01:09]} 5. c3 {[%emt 0:02:40]} b6 {[%emt 0:02:30]} 6. Be2 {[%emt 0:01:49]} O-O {[%emt 0:00:51]} 7. O-O {[%emt 0:00:39]} Bb7 {[%emt 0:01:37]} 8. h3 {[%emt 0:01:41]} d6 {[%emt 0:03:16]} 9. Nbd2 {[%emt 0:03:22]} Nbd7 {[%emt 0:00:48]} 10. Bg3 {[%emt 0:04:30]} Re8 {[%emt 0:04:20]} 11. e4 {[%emt 0:01:21]} Nxe4 {[%emt 0:01:23]} 12. Nxe4 {[%emt 0:01:32]} Bxe4 {[%emt 0:00:40]} 13. Bh4 {[%emt 0:02:56]} Nf6 {[%emt 0:01:24]} 14. Ng5 {[%emt 0:01:58]} Bc6 {[%emt 0:01:37]} 15. Bd3 {[%emt 0:01:24]} cxd4 {[%emt 0:01:40]} 16. cxd4 {[%emt 0:01:26]} Rc8 {[%emt 0:01:36]} 17. Rc1 {[%emt 0:00:57]} Qd7 {[%emt 0:02:47]} 18. Be2 {[%emt 0:01:23]} Qb7 {[%emt 0:02:05]} 19. Nf3 {[%emt 0:01:58]} Rc7 {[%emt 0:04:25]} 20. Qd3 {[%emt 0:03:40]} Rec8 {[%emt 0:02:21]} 21. Bxf6 {[%emt 0:02:25]} Bxf6 {[%emt 0:01:11]} 22. Rc3 {[%emt 0:01:51]} Be4 {[%emt 0:02:06]} 23. Qd2 {[%emt 0:02:09]} Qd5 {[%emt 0:02:26]} 24. Rd1 {[%emt 0:04:53]} Qxa2 {[%emt 0:04:49]} 25. Rxc7 {[%emt 0:02:25]} Rxc7 {[%emt 0:00:58]} 26. Qf4 {[%emt 0:02:18]} Bf5 {[%emt 0:01:17]} 27. d5 {[%emt 0:06:23]} Qxb2 {[%emt 0:02:30]} 28. Nd4 {[%emt 0:01:29]} Bxd4 {[%emt 0:01:18]} 29. Rxd4 {[%emt 0:01:20]} Qxe2 {[%emt 0:00:51]} 30. Rd2 {[%emt 0:01:30]} Rc1+ {[%emt 0:00:51]} 31. Kh2 {[%emt 0:01:00]} Qe5 {[%emt 0:00:44]} 32. Qg3 {[%emt 0:03:44]} Qxg3+ {[%emt 0:00:41]} 33. Kxg3 {[%emt 0:00:47]} a5 {[%emt 0:00:47]} 34. Rb2 {[%emt 0:01:26]} Rb1 {[%emt 0:00:48]} 35. Rd2 {[%emt 0:01:30]} b5 {[%emt 0:00:46]} 36. Rd4 {[%emt 0:01:04]} b4 {[%emt 0:00:39]} 37. Rc4 {[%emt 0:00:57]} b3 {[%emt 0:00:47]} 38. Rc8+ {[%emt 0:00:58]} Bxc8 {[%emt 0:00:40]} 0-1

[Event "NOR-ch Women 2019"]
[Site "Bekkestua"]
[Date "2019.03.16"]
[Round "2.1"]
[White "Larre, Linnea"]
[Black "Johnsen, Sylvia"]
[Result "1-0"]
[ECO "A34"]
[WhiteElo "1599"]
[BlackElo "1982"]
[Annotator "NA RC"]
[PlyCount "47"]
[EventDate "2019.03.15"]
[EventType "swiss"]
[EventCountry "NOR"]
[SourceTitle "playchess.com"]
[Source "ChessBase"]
[SourceQuality "1"]
[TimeControl "5400+30"]

{[%evp 15,46,18,2,0,8,-15,0,-54,53,54,52,39,87,87,74,32767,61,70,75,52,77,24,41,50,69,72,86,32767,32767,130,121,32767,397]} 1. c4 {[%emt 0:00:33]} c5 {[%emt 0:00:42]} 2. g3 {[%emt 0:00:40]} Nf6 {[%emt 0:00:36]} 3. Bg2 {[%emt 0:00:55]} d5 {[%emt 0:01:06]} 4. cxd5 {[%emt 0:01:02]} Nxd5 {[%emt 0:00:34]} 5. Nc3 {[%emt 0:01:10]} Nc7 {[%emt 0:00:34]} 6. Nf3 {[%emt 0:00:50]} Nc6 {[%emt 0:00:34]} 7. d3 {[%emt 0:01:45]} e5 {[%emt 0:00:35]} 8. Be3 {[%emt 0:01:27]} Be7 {[%emt 0:02:11]} 9. Rc1 {[%emt 0:01:11] A34: Symmetrical English: 2 Nc3, lines with ...d5} (9. Nd2 Bd7 10. Rc1 Rc8 11. O-O O-O 12. Nc4 f6 13. Bxc6 Bxc6 14. Na5 Ne6 15. Nxc6 Rxc6 16. Qa4 Ra6 17. Qb3 Qd7 18. Ne4 Rb6 19. Qc4 Rc8 {0-1 (43) Gajewski,G (2648)-Steingrimsson,H (2530) Reykjavik 2015}) 9... Be6 {[%emt 0:05:57]} 10. a3 {[%emt 0:06:19]} O-O $146 {[%emt 0:09:27]} ({Predecessor:} 10... Qd7 11. Na4 b6 12. b4 O-O 13. bxc5 Nd5 14. Bd2 b5 15. Nc3 Rab8 16. O-O f6 {0-1 (48) Johannesson,I (2344)-Misiuga,A (2147) Reykjavik 2007}) 11. Na4 {[%emt 0:01:42]} c4 {[%emt 0:03:49]} ({Black should play} 11... b6 $15) 12. dxc4 {[%emt 0:03:41]} Qxd1+ {[%emt 0:01:12]} 13. Kxd1 {[%emt 0:02:30]} f6 {[%emt 0:09:54]} 14. Ke1 {[%emt 0:05:38]} Rfd8 {[%emt 0:11:48]} 15. Nd2 {[%emt 0:08:08]} Bf7 {[%emt 0:04:05]} 16. Bxc6 {[%emt 0:05:37]} bxc6 {[%emt 0:00:42]} 17. f3 {[%emt 0:01:48]} Ne6 {[%emt 0:00:58]} 18. Ne4 {[%emt 0:05:30]} f5 {[%emt 0:03:23]} 19. Nec5 {[%emt 0:04:06]} Nd4 {[%emt 0:02:37]} 20. Kf2 {[%emt 0:03:03]} Rab8 {[%emt 0:02:20]} 21. b4 {[%emt 0:03:52]} Bf6 {[%emt 0:04:53]} 22. Rhd1 {[%emt 0:06:59]} g5 {[%emt 0:03:07]} 23. Bxd4 {[%emt 0:03:54]} Rxd4 $18 {[%emt 0:04:12]} (23... exd4 $16 24. h3 Rd6) 24. Rxd4 {[%emt 0:00:39]} 1-0